[Event "Titled Tuesday Blitz January 10 Late 2023"]
[White "Skvortsov, Andrei"]
[Black "Fernandez Siles, Luis"]
[WhiteFideId "24108600"]
[BlackFideId "2209420"]
[WhiteElo "2313"]
[BlackElo "2218"]
[Result "1-0"]
[Round "01"]
[TimeControl "180+2"]
[Date "2023.01.10"]
[WhiteClock "0:00:09"]
[BlackClock "0:00:03"]

1. c4 {[%clk 0:00:00]}  Nf6 {[%clk 0:00:00]} 2. Nc3 {[%clk 0:02:58]}  g6 {[%clk 0:02:59]} 3. g3 {[%clk 0:02:51]}  Bg7 {[%clk 0:02:59]} 4. Bg2 {[%clk 0:02:49]}  O-O {[%clk 0:02:59]} 5. Nf3 {[%clk 0:02:50]}  d6 {[%clk 0:02:59]} 6. d4 {[%clk 0:02:50]}  c6 {[%clk 0:03:00]} 7. O-O {[%clk 0:02:47]}  Qa5 {[%clk 0:02:59]} 8. Rb1 {[%clk 0:02:47]}  Qh5 {[%clk 0:02:59]} 9. e4 {[%clk 0:02:44]}  Bg4 {[%clk 0:02:56]} 10. Qd3 {[%clk 0:02:32]}  Nbd7 {[%clk 0:02:48]} 11. Nd2 {[%clk 0:02:31]}  e5 {[%clk 0:02:43]} 12. f3 {[%clk 0:02:25]}  Bh3 {[%clk 0:02:29]} 13. Bxh3 {[%clk 0:02:11]}  Qxh3 {[%clk 0:02:28]} 14. d5 {[%clk 0:01:56]}  Nc5 {[%clk 0:02:27]} 15. Qe2 {[%clk 0:01:52]}  cxd5 {[%clk 0:02:13]} 16. cxd5 {[%clk 0:01:50]}  a5 {[%clk 0:02:14]} 17. Nc4 {[%clk 0:01:47]}  Ra6 {[%clk 0:02:13]} 18. Be3 {[%clk 0:01:43]}  Nfd7 {[%clk 0:01:44]} 19. Nb5 {[%clk 0:01:31]}  f5 {[%clk 0:01:37]} 20. Nbxd6 {[%clk 0:01:26]}  b5 {[%clk 0:01:14]} 21. Nxb5 {[%clk 0:01:22]}  fxe4 {[%clk 0:01:05]} 22. fxe4 {[%clk 0:01:22]}  Nxe4 {[%clk 0:01:06]} 23. Rxf8+ {[%clk 0:01:20]}  Bxf8 {[%clk 0:01:03]} 24. Qg2 {[%clk 0:01:16]}  Qg4 {[%clk 0:01:02]} 25. Rf1 {[%clk 0:01:10]}  Bc5 {[%clk 0:00:58]} 26. Qf3 {[%clk 0:01:07]}  Qxf3 {[%clk 0:00:45]} 27. Rxf3 {[%clk 0:00:37]}  Bxe3+ {[%clk 0:00:45]} 28. Rxe3 {[%clk 0:00:36]}  Nef6 {[%clk 0:00:30]} 29. Nc7 {[%clk 0:00:33]}  Ra7 {[%clk 0:00:26]} 30. d6 {[%clk 0:00:28]}  e4 {[%clk 0:00:23]} 31. h3 {[%clk 0:00:26]}  Rb7 {[%clk 0:00:18]} 32. b3 {[%clk 0:00:20]}  a4 {[%clk 0:00:18]} 33. g4 {[%clk 0:00:19]}  h6 {[%clk 0:00:18]} 34. Kf2 {[%clk 0:00:18]}  axb3 {[%clk 0:00:17]} 35. Rxb3 {[%clk 0:00:17]}  Ra7 {[%clk 0:00:16]} 36. a3 {[%clk 0:00:18]}  Ra4 {[%clk 0:00:16]} 37. Ne3 {[%clk 0:00:18]}  Nc5 {[%clk 0:00:16]} 38. Rb8+ {[%clk 0:00:18]}  Kf7 {[%clk 0:00:16]} 39. Ncd5 {[%clk 0:00:17]}  Nd3+ {[%clk 0:00:15]} 40. Ke2 {[%clk 0:00:12]}  Nxd5 {[%clk 0:00:12]} 41. Nxd5 {[%clk 0:00:12]}  Rxa3 {[%clk 0:00:12]} 42. d7 {[%clk 0:00:12]}  Nc1+ {[%clk 0:00:13]} 43. Kf1 {[%clk 0:00:10]}  Rf3+ {[%clk 0:00:10]} 44. Kg2 {[%clk 0:00:09]}  Nd3 {[%clk 0:00:09]} 45. d8=Q {[%clk 0:00:09]}  Ne1+ {[%clk 0:00:04]} 46. Kh2 {[%clk 0:00:09]}  Rf2+ {[%clk 0:00:04]} 47. Kg1 {[%clk 0:00:09]}  e3 {[%clk 0:00:03]} 48. Qe7# {[%clk 0:00:09]} 1-0


[Site "https://www.chess.com"]

[Event "Titled Tuesday Blitz January 10 Late 2023"]
[White "Papasimakopoulos, Alexandros"]
[Black "Gatterer, Florian"]
[WhiteFideId "4244125"]
[BlackFideId "811688"]
[WhiteElo "2401"]
[BlackElo "2170"]
[Result "1/2-1/2"]
[Round "01"]
[TimeControl "180+2"]
[Date "2023.01.10"]
[WhiteClock "0:00:06"]
[BlackClock "0:00:03"]

1. d4 {[%clk 0:00:00]}  Nf6 {[%clk 0:00:00]} 2. c4 {[%clk 0:02:57]}  e6 {[%clk 0:02:59]} 3. Nc3 {[%clk 0:02:56]}  Bb4 {[%clk 0:03:00]} 4. Qc2 {[%clk 0:02:55]}  O-O {[%clk 0:03:00]} 5. a3 {[%clk 0:02:54]}  Bxc3+ {[%clk 0:02:59]} 6. Qxc3 {[%clk 0:02:54]}  d6 {[%clk 0:02:59]} 7. f3 {[%clk 0:02:55]}  Nc6 {[%clk 0:02:59]} 8. e4 {[%clk 0:02:53]}  e5 {[%clk 0:02:53]} 9. d5 {[%clk 0:02:45]}  Nd4 {[%clk 0:02:45]} 10. Be3 {[%clk 0:02:44]}  c5 {[%clk 0:02:45]} 11. dxc6 {[%clk 0:02:44]}  Nxc6 {[%clk 0:02:30]} 12. b4 {[%clk 0:02:44]}  a6 {[%clk 0:02:19]} 13. Bd3 {[%clk 0:02:39]}  Be6 {[%clk 0:02:16]} 14. Ne2 {[%clk 0:02:37]}  Rc8 {[%clk 0:02:15]} 15. Qd2 {[%clk 0:02:37]}  Nh5 {[%clk 0:02:10]} 16. O-O {[%clk 0:02:35]}  f5 {[%clk 0:01:57]} 17. exf5 {[%clk 0:02:34]}  Bf7 {[%clk 0:01:56]} 18. Rfd1 {[%clk 0:02:31]}  Qe7 {[%clk 0:01:48]} 19. Rac1 {[%clk 0:02:12]}  Kh8 {[%clk 0:01:40]} 20. Bg5 {[%clk 0:02:05]}  Nf6 {[%clk 0:01:33]} 21. b5 {[%clk 0:02:05]}  axb5 {[%clk 0:01:33]} 22. cxb5 {[%clk 0:01:43]}  Nb8 {[%clk 0:01:28]} 23. Be4 {[%clk 0:01:44]}  Rxc1 {[%clk 0:01:19]} 24. Rxc1 {[%clk 0:01:39]}  d5 {[%clk 0:01:11]} 25. Bxf6 {[%clk 0:01:39]}  gxf6 {[%clk 0:01:07]} 26. Bxd5 {[%clk 0:01:34]}  Rd8 {[%clk 0:01:06]} 27. Nc3 {[%clk 0:01:22]}  Qxa3 {[%clk 0:01:02]} 28. Rd1 {[%clk 0:01:22]}  Qc5+ {[%clk 0:00:38]} 29. Kh1 {[%clk 0:01:01]}  Bxd5 {[%clk 0:00:27]} 30. Nxd5 {[%clk 0:01:01]}  Kg7 {[%clk 0:00:26]} 31. h4 {[%clk 0:01:01]}  h6 {[%clk 0:00:20]} 32. Qd3 {[%clk 0:00:44]}  b6 {[%clk 0:00:17]} 33. Qb3 {[%clk 0:00:30]}  Rd6 {[%clk 0:00:15]} 34. Ne3 {[%clk 0:00:29]}  Rxd1+ {[%clk 0:00:12]} 35. Nxd1 {[%clk 0:00:29]}  Qd4 {[%clk 0:00:11]} 36. g3 {[%clk 0:00:30]}  Nd7 {[%clk 0:00:09]} 37. Kg2 {[%clk 0:00:27]}  Nc5 {[%clk 0:00:09]} 38. Qc2 {[%clk 0:00:24]}  Qd5 {[%clk 0:00:09]} 39. Ne3 {[%clk 0:00:24]}  Qd4 {[%clk 0:00:08]} 40. Ng4 {[%clk 0:00:22]}  h5 {[%clk 0:00:08]} 41. Nf2 {[%clk 0:00:21]}  Qd5 {[%clk 0:00:08]} 42. Ne4 {[%clk 0:00:21]}  Nxe4 {[%clk 0:00:07]} 43. Qxe4 {[%clk 0:00:18]}  Qxb5 {[%clk 0:00:07]} 44. Qb7+ {[%clk 0:00:18]}  Kh6 {[%clk 0:00:07]} 45. Qe4 {[%clk 0:00:17]}  Qb2+ {[%clk 0:00:07]} 46. Kh3 {[%clk 0:00:16]}  Qf2 {[%clk 0:00:05]} 47. g4 {[%clk 0:00:16]}  Qf1+ {[%clk 0:00:04]} 48. Kh2 {[%clk 0:00:06]}  Qf2+ {[%clk 0:00:03]} 49. Kh3 {[%clk 0:00:06]}  Qf1+ {[%clk 0:00:02]} 50. Kg3 {[%clk 0:00:06]}  Qg1+ {[%clk 0:00:03]} 51. Kh3 {[%clk 0:00:06]}  Qf1+ {[%clk 0:00:03]} 1/2-1/2


[Site "https://www.chess.com"]

[Event "Titled Tuesday Blitz January 10 Late 2023"]
[White "Barrientos, Sergio E"]
[Black "Vasques, Antonio Pedro Freixial"]
[WhiteFideId "4401824"]
[BlackFideId "1908332"]
[WhiteElo "2479"]
[BlackElo "2214"]
[Result "1-0"]
[Round "01"]
[TimeControl "180+2"]
[Date "2023.01.10"]
[WhiteClock "0:00:38"]
[BlackClock "0:00:57"]

1. d4 {[%clk 0:00:00]}  Nf6 {[%clk 0:00:00]} 2. Bg5 {[%clk 0:02:58]}  Ne4 {[%clk 0:02:33]} 3. Bf4 {[%clk 0:02:57]}  c5 {[%clk 0:02:30]} 4. e3 {[%clk 0:02:57]}  d5 {[%clk 0:02:30]} 5. Nf3 {[%clk 0:02:55]}  Nc6 {[%clk 0:02:25]} 6. Nbd2 {[%clk 0:02:53]}  Bg4 {[%clk 0:02:22]} 7. c3 {[%clk 0:02:53]}  e6 {[%clk 0:02:17]} 8. Bb5 {[%clk 0:02:47]}  Be7 {[%clk 0:02:16]} 9. h3 {[%clk 0:02:43]}  Nxd2 {[%clk 0:02:14]} 10. hxg4 {[%clk 0:02:35]}  Ne4 {[%clk 0:02:06]} 11. Ne5 {[%clk 0:02:28]}  Rc8 {[%clk 0:02:06]} 12. Qa4 {[%clk 0:02:25]}  Qb6 {[%clk 0:02:05]} 13. O-O {[%clk 0:02:19]}  O-O {[%clk 0:01:55]} 14. Nd7 {[%clk 0:02:16]}  Qd8 {[%clk 0:01:52]} 15. Nxf8 {[%clk 0:02:14]}  Bxf8 {[%clk 0:01:46]} 16. Bxc6 {[%clk 0:02:13]}  Rxc6 {[%clk 0:01:47]} 17. Qxa7 {[%clk 0:02:05]}  cxd4 {[%clk 0:01:48]} 18. cxd4 {[%clk 0:02:02]}  Rc2 {[%clk 0:01:46]} 19. Rac1 {[%clk 0:01:59]}  Rxb2 {[%clk 0:01:45]} 20. Rb1 {[%clk 0:01:34]}  Rxb1 {[%clk 0:01:44]} 21. Rxb1 {[%clk 0:01:34]}  Qh4 {[%clk 0:01:41]} 22. g3 {[%clk 0:01:33]}  Qxg4 {[%clk 0:01:40]} 23. Qxb7 {[%clk 0:01:20]}  h5 {[%clk 0:01:40]} 24. Qc8 {[%clk 0:01:18]}  h4 {[%clk 0:01:25]} 25. Rb8 {[%clk 0:01:08]}  Qd1+ {[%clk 0:01:23]} 26. Kh2 {[%clk 0:01:08]}  hxg3+ {[%clk 0:01:18]} 27. Bxg3 {[%clk 0:01:08]}  Nxg3 {[%clk 0:01:16]} 28. Qxf8+ {[%clk 0:01:08]}  Kh7 {[%clk 0:00:58]} 29. Qh8+ {[%clk 0:01:07]}  Kg6 {[%clk 0:00:59]} 30. Kxg3 {[%clk 0:00:48]}  f5 {[%clk 0:00:59]} 31. Qh3 {[%clk 0:00:48]}  Qf1 {[%clk 0:00:57]} 32. Qxf1 {[%clk 0:00:38]} 1-0


[Site "https://www.chess.com"]

[Event "Titled Tuesday Blitz January 10 Late 2023"]
[White "Hernandez Gonzalez, William"]
[Black "Lopez Idarraga, Daniel Eduardo"]
[WhiteFideId "3509915"]
[BlackFideId "4405501"]
[WhiteElo "2489"]
[BlackElo "2009"]
[Result "1-0"]
[Round "01"]
[TimeControl "180+2"]
[Date "2023.01.10"]
[WhiteClock "0:01:29"]
[BlackClock "0:01:14"]

1. e4 {[%clk 0:00:00]}  e6 {[%clk 0:00:00]} 2. d4 {[%clk 0:03:00]}  d5 {[%clk 0:02:57]} 3. Nc3 {[%clk 0:02:58]}  Nf6 {[%clk 0:02:57]} 4. e5 {[%clk 0:02:59]}  Nfd7 {[%clk 0:02:56]} 5. Nce2 {[%clk 0:02:57]}  b6 {[%clk 0:02:56]} 6. Nf3 {[%clk 0:02:58]}  Ba6 {[%clk 0:02:54]} 7. c3 {[%clk 0:02:57]}  c5 {[%clk 0:02:55]} 8. Be3 {[%clk 0:02:52]}  Nc6 {[%clk 0:02:54]} 9. Nf4 {[%clk 0:02:52]}  Bxf1 {[%clk 0:02:48]} 10. Kxf1 {[%clk 0:02:52]}  Be7 {[%clk 0:02:44]} 11. g3 {[%clk 0:02:51]}  O-O {[%clk 0:02:45]} 12. Kg2 {[%clk 0:02:49]}  Re8 {[%clk 0:02:45]} 13. h4 {[%clk 0:02:49]}  Nf8 {[%clk 0:02:35]} 14. h5 {[%clk 0:02:49]}  f6 {[%clk 0:02:27]} 15. h6 {[%clk 0:02:48]}  g6 {[%clk 0:02:26]} 16. exf6 {[%clk 0:02:39]}  Bxf6 {[%clk 0:02:19]} 17. Nd3 {[%clk 0:02:35]}  e5 {[%clk 0:02:18]} 18. dxe5 {[%clk 0:02:31]}  Nxe5 {[%clk 0:02:17]} 19. Ndxe5 {[%clk 0:02:30]}  Bxe5 {[%clk 0:02:18]} 20. Re1 {[%clk 0:02:25]}  Bf6 {[%clk 0:02:19]} 21. Qb3 {[%clk 0:02:20]}  Kh8 {[%clk 0:02:15]} 22. Rad1 {[%clk 0:02:20]}  c4 {[%clk 0:02:12]} 23. Qb5 {[%clk 0:02:20]}  Qd7 {[%clk 0:02:05]} 24. Qxd5 {[%clk 0:02:14]}  Qxd5 {[%clk 0:01:45]} 25. Rxd5 {[%clk 0:02:08]}  Rad8 {[%clk 0:01:44]} 26. Red1 {[%clk 0:02:09]}  Rxd5 {[%clk 0:01:44]} 27. Rxd5 {[%clk 0:02:07]}  Kg8 {[%clk 0:01:45]} 28. g4 {[%clk 0:02:07]}  Kf7 {[%clk 0:01:45]} 29. g5 {[%clk 0:01:59]}  Bh8 {[%clk 0:01:45]} 30. a4 {[%clk 0:01:57]}  Ke6 {[%clk 0:01:42]} 31. Rd1 {[%clk 0:01:52]}  Nd7 {[%clk 0:01:39]} 32. Bd4 {[%clk 0:01:51]}  Bxd4 {[%clk 0:01:38]} 33. Nxd4+ {[%clk 0:01:46]}  Kd5 {[%clk 0:01:13]} 34. Nb5+ {[%clk 0:01:46]}  Kc6 {[%clk 0:01:14]} 35. Rd6+ {[%clk 0:01:29]} 1-0


[Site "https://www.chess.com"]

[Event "Titled Tuesday Blitz January 10 Late 2023"]
[White "Cueto, Jonny"]
[Black "Taboas Rodriguez, Daniel"]
[WhiteFideId "3300145"]
[BlackFideId "2208466"]
[WhiteElo "2122"]
[BlackElo "2371"]
[Result "0-1"]
[Round "01"]
[TimeControl "180+2"]
[Date "2023.01.10"]
[WhiteClock "0:00:04"]
[BlackClock "0:00:15"]

1. d4 {[%clk 0:00:00]}  Nf6 {[%clk 0:00:00]} 2. Bf4 {[%clk 0:03:00]}  d5 {[%clk 0:02:59]} 3. e3 {[%clk 0:03:01]}  c5 {[%clk 0:02:59]} 4. Nf3 {[%clk 0:03:01]}  Nc6 {[%clk 0:02:51]} 5. Nbd2 {[%clk 0:03:01]}  Bg4 {[%clk 0:02:51]} 6. Be2 {[%clk 0:02:54]}  e6 {[%clk 0:02:50]} 7. c3 {[%clk 0:02:48]}  Bd6 {[%clk 0:02:47]} 8. Ne5 {[%clk 0:02:43]}  Bxe2 {[%clk 0:02:47]} 9. Qxe2 {[%clk 0:02:39]}  O-O {[%clk 0:02:47]} 10. Bg3 {[%clk 0:02:40]}  Qc7 {[%clk 0:02:46]} 11. f4 {[%clk 0:02:05]}  Ne8 {[%clk 0:02:04]} 12. O-O {[%clk 0:02:02]}  f6 {[%clk 0:02:00]} 13. Nxc6 {[%clk 0:01:50]}  bxc6 {[%clk 0:02:00]} 14. Rab1 {[%clk 0:01:48]}  f5 {[%clk 0:02:01]} 15. Bh4 {[%clk 0:01:28]}  Rb8 {[%clk 0:02:00]} 16. Nf3 {[%clk 0:01:23]}  Nf6 {[%clk 0:01:57]} 17. Bxf6 {[%clk 0:01:21]}  Rxf6 {[%clk 0:01:34]} 18. dxc5 {[%clk 0:01:18]}  Bxc5 {[%clk 0:01:35]} 19. b4 {[%clk 0:01:06]}  Bd6 {[%clk 0:01:36]} 20. Nd4 {[%clk 0:01:06]}  c5 {[%clk 0:01:32]} 21. bxc5 {[%clk 0:01:06]}  Bxc5 {[%clk 0:01:29]} 22. Rxb8+ {[%clk 0:01:03]}  Qxb8 {[%clk 0:01:28]} 23. Qd3 {[%clk 0:00:38]}  Bxd4 {[%clk 0:01:28]} 24. cxd4 {[%clk 0:00:37]}  Rf7 {[%clk 0:01:01]} 25. Qa6 {[%clk 0:00:30]}  Qb6 {[%clk 0:01:00]} 26. Qxb6 {[%clk 0:00:19]}  axb6 {[%clk 0:00:38]} 27. Rb1 {[%clk 0:00:19]}  Rb7 {[%clk 0:00:38]} 28. Rb5 {[%clk 0:00:20]}  Kf7 {[%clk 0:00:38]} 29. a4 {[%clk 0:00:19]}  Ra7 {[%clk 0:00:37]} 30. Rxb6 {[%clk 0:00:19]}  Rxa4 {[%clk 0:00:37]} 31. Kf2 {[%clk 0:00:17]}  Kf6 {[%clk 0:00:38]} 32. Kf3 {[%clk 0:00:17]}  h6 {[%clk 0:00:37]} 33. h3 {[%clk 0:00:17]}  g5 {[%clk 0:00:37]} 34. g4 {[%clk 0:00:17]}  Ra1 {[%clk 0:00:35]} 35. Kf2 {[%clk 0:00:15]}  Rh1 {[%clk 0:00:30]} 36. Kg2 {[%clk 0:00:04]}  Rd1 {[%clk 0:00:30]} 37. Rb8 {[%clk 0:00:04]}  gxf4 {[%clk 0:00:27]} 38. exf4 {[%clk 0:00:04]}  Rxd4 {[%clk 0:00:27]} 39. Rf8+ {[%clk 0:00:02]}  Kg7 {[%clk 0:00:27]} 40. Re8 {[%clk 0:00:02]}  Kf7 {[%clk 0:00:25]} 41. Rh8 {[%clk 0:00:01]}  fxg4 {[%clk 0:00:22]} 42. Rh7+ {[%clk 0:00:01]}  Kg6 {[%clk 0:00:22]} 43. Re7 {[%clk 0:00:01]}  Kf6 {[%clk 0:00:20]} 44. Rh7 {[%clk 0:00:02]}  Rxf4 {[%clk 0:00:19]} 45. Rxh6+ {[%clk 0:00:02]}  Ke5 {[%clk 0:00:19]} 46. Rh5+ {[%clk 0:00:02]}  Ke4 {[%clk 0:00:19]} 47. h4 {[%clk 0:00:02]}  d4 {[%clk 0:00:20]} 48. Rh8 {[%clk 0:00:02]}  d3 {[%clk 0:00:19]} 49. Rd8 {[%clk 0:00:02]}  e5 {[%clk 0:00:19]} 50. h5 {[%clk 0:00:03]}  Rf5 {[%clk 0:00:18]} 51. h6 {[%clk 0:00:03]}  Rh5 {[%clk 0:00:18]} 52. Rd6 {[%clk 0:00:02]}  Ke3 {[%clk 0:00:18]} 53. Kg3 {[%clk 0:00:03]}  d2 {[%clk 0:00:17]} 54. Kxg4 {[%clk 0:00:02]}  Rxh6 {[%clk 0:00:18]} 55. Rxh6 {[%clk 0:00:02]}  d1=Q+ {[%clk 0:00:18]} 56. Kg5 {[%clk 0:00:01]}  e4 {[%clk 0:00:16]} 57. Kg6 {[%clk 0:00:01]}  Kf4 {[%clk 0:00:16]} 58. Rh3 {[%clk 0:00:02]}  Qg1+ {[%clk 0:00:15]} 59. Kh6 {[%clk 0:00:03]}  e3 {[%clk 0:00:15]} 60. Rh4+ {[%clk 0:00:03]}  Kf5 {[%clk 0:00:15]} 61. Rh5+ {[%clk 0:00:04]}  Kf6 {[%clk 0:00:15]} 62. Kh7 {[%clk 0:00:04]}  Qg7# {[%clk 0:00:15]} 0-1


[Site "https://www.chess.com"]

[Event "Titled Tuesday Blitz January 10 Late 2023"]
[White "Volkov, Maksim"]
[Black "Hoffmann, Asa"]
[WhiteFideId "54123070"]
[BlackFideId "2001470"]
[WhiteElo "2258"]
[BlackElo "2185"]
[Result "1-0"]
[Round "01"]
[TimeControl "180+2"]
[Date "2023.01.10"]
[WhiteClock "0:01:27"]
[BlackClock "0:00:55"]

1. d4 {[%clk 0:00:00]}  Nf6 {[%clk 0:00:00]} 2. c4 {[%clk 0:03:00]}  c5 {[%clk 0:02:54]} 3. d5 {[%clk 0:03:00]}  e5 {[%clk 0:02:52]} 4. Nc3 {[%clk 0:03:00]}  d6 {[%clk 0:02:45]} 5. g3 {[%clk 0:02:58]}  Be7 {[%clk 0:02:44]} 6. Bg2 {[%clk 0:02:58]}  O-O {[%clk 0:02:44]} 7. Nf3 {[%clk 0:02:59]}  Ne8 {[%clk 0:02:43]} 8. O-O {[%clk 0:02:59]}  f5 {[%clk 0:02:40]} 9. a3 {[%clk 0:02:59]}  e4 {[%clk 0:02:40]} 10. Ne1 {[%clk 0:02:55]}  Bf6 {[%clk 0:02:39]} 11. Nc2 {[%clk 0:02:54]}  Bxc3 {[%clk 0:02:37]} 12. bxc3 {[%clk 0:02:53]}  Qa5 {[%clk 0:02:31]} 13. Qe1 {[%clk 0:02:53]}  Bd7 {[%clk 0:02:30]} 14. Rb1 {[%clk 0:02:47]}  b6 {[%clk 0:02:26]} 15. f3 {[%clk 0:02:45]}  Ba4 {[%clk 0:02:24]} 16. Ne3 {[%clk 0:02:43]}  exf3 {[%clk 0:02:22]} 17. Rxf3 {[%clk 0:02:41]}  Nd7 {[%clk 0:02:15]} 18. Rxf5 {[%clk 0:02:32]}  Nef6 {[%clk 0:02:15]} 19. Rf2 {[%clk 0:02:28]}  Rae8 {[%clk 0:02:11]} 20. Rb2 {[%clk 0:02:22]}  Ne5 {[%clk 0:02:09]} 21. Rf4 {[%clk 0:02:20]}  a6 {[%clk 0:02:03]} 22. Bd2 {[%clk 0:02:12]}  b5 {[%clk 0:01:47]} 23. cxb5 {[%clk 0:02:10]}  axb5 {[%clk 0:01:39]} 24. Qb1 {[%clk 0:02:10]}  Qa6 {[%clk 0:01:39]} 25. Bh3 {[%clk 0:02:00]}  Kh8 {[%clk 0:01:34]} 26. Be6 {[%clk 0:01:59]}  Nh5 {[%clk 0:01:24]} 27. Rf5 {[%clk 0:01:53]}  g6 {[%clk 0:01:17]} 28. Rf1 {[%clk 0:01:49]}  Rxf1+ {[%clk 0:01:16]} 29. Qxf1 {[%clk 0:01:40]}  Kg7 {[%clk 0:01:08]} 30. c4 {[%clk 0:01:41]}  Rf8 {[%clk 0:01:08]} 31. Qc1 {[%clk 0:01:38]}  bxc4 {[%clk 0:01:06]} 32. Ng2 {[%clk 0:01:33]}  Bb3 {[%clk 0:01:04]} 33. Bh6+ {[%clk 0:01:28]}  Kh8 {[%clk 0:01:02]} 34. Bxf8 {[%clk 0:01:28]}  Qxa3 {[%clk 0:00:55]} 35. Bxd6 {[%clk 0:01:27]} 1-0


[Site "https://www.chess.com"]

[Event "Titled Tuesday Blitz January 10 Late 2023"]
[White "Ankerst, Mihael"]
[Black "Baskin, Robert"]
[WhiteFideId "14602369"]
[BlackFideId "24662402"]
[WhiteElo "2370"]
[BlackElo "2442"]
[Result "0-1"]
[Round "01"]
[TimeControl "180+2"]
[Date "2023.01.10"]
[WhiteClock "0:00:03"]
[BlackClock "0:00:23"]

1. e4 {[%clk 0:00:00]}  Nc6 {[%clk 0:00:00]} 2. d4 {[%clk 0:02:33]}  d6 {[%clk 0:02:55]} 3. Nc3 {[%clk 0:02:32]}  Nf6 {[%clk 0:02:54]} 4. d5 {[%clk 0:02:30]}  Nb8 {[%clk 0:02:55]} 5. Be2 {[%clk 0:02:26]}  g6 {[%clk 0:02:55]} 6. h4 {[%clk 0:02:26]}  h5 {[%clk 0:02:55]} 7. Nh3 {[%clk 0:02:25]}  Bg7 {[%clk 0:02:52]} 8. Ng5 {[%clk 0:02:24]}  c6 {[%clk 0:02:52]} 9. Be3 {[%clk 0:02:24]}  Qa5 {[%clk 0:02:52]} 10. Qd2 {[%clk 0:02:24]}  Na6 {[%clk 0:02:51]} 11. O-O {[%clk 0:02:23]}  Bg4 {[%clk 0:02:46]} 12. Bc4 {[%clk 0:02:16]}  O-O {[%clk 0:02:45]} 13. Rae1 {[%clk 0:02:08]}  b5 {[%clk 0:02:29]} 14. Bb3 {[%clk 0:02:06]}  c5 {[%clk 0:02:27]} 15. a3 {[%clk 0:02:06]}  Bd7 {[%clk 0:02:26]} 16. Bf4 {[%clk 0:02:04]}  c4 {[%clk 0:02:25]} 17. Ba2 {[%clk 0:01:44]}  Ng4 {[%clk 0:02:24]} 18. Nf3 {[%clk 0:01:44]}  Nc5 {[%clk 0:02:21]} 19. Nd4 {[%clk 0:01:40]}  Qb6 {[%clk 0:02:18]} 20. f3 {[%clk 0:01:34]}  e5 {[%clk 0:02:09]} 21. dxe6 {[%clk 0:01:30]}  Nxe6 {[%clk 0:01:42]} 22. fxg4 {[%clk 0:00:23]}  Nxf4 {[%clk 0:01:41]} 23. Qxf4 {[%clk 0:00:23]}  Bxd4+ {[%clk 0:01:35]} 24. Kh1 {[%clk 0:00:12]}  Bxc3 {[%clk 0:01:25]} 25. bxc3 {[%clk 0:00:12]}  Bxg4 {[%clk 0:01:22]} 26. a4 {[%clk 0:00:12]}  a6 {[%clk 0:01:21]} 27. e5 {[%clk 0:00:13]}  d5 {[%clk 0:01:19]} 28. Qh6 {[%clk 0:00:13]}  Rae8 {[%clk 0:01:13]} 29. Rf6 {[%clk 0:00:12]}  Re6 {[%clk 0:01:08]} 30. Ref1 {[%clk 0:00:12]}  Rxf6 {[%clk 0:01:08]} 31. exf6 {[%clk 0:00:12]}  Qxf6 {[%clk 0:00:54]} 32. Rxf6 {[%clk 0:00:11]}  Re8 {[%clk 0:00:47]} 33. axb5 {[%clk 0:00:11]}  axb5 {[%clk 0:00:46]} 34. Rd6 {[%clk 0:00:11]}  Be6 {[%clk 0:00:47]} 35. Rb6 {[%clk 0:00:09]}  Bd7 {[%clk 0:00:43]} 36. Kh2 {[%clk 0:00:09]}  Ra8 {[%clk 0:00:32]} 37. Rd6 {[%clk 0:00:07]}  Be8 {[%clk 0:00:29]} 38. Rxd5 {[%clk 0:00:07]}  f6 {[%clk 0:00:29]} 39. Rd6 {[%clk 0:00:05]}  Bf7 {[%clk 0:00:23]} 40. Rxf6 {[%clk 0:00:03]}  Rxa2 {[%clk 0:00:23]} 0-1


[Site "https://www.chess.com"]

[Event "Titled Tuesday Blitz January 10 Late 2023"]
[White "Rose, Felix"]
[Black "Jaferian, Koosha"]
[WhiteFideId "5105722"]
[BlackFideId "12507440"]
[WhiteElo "2091"]
[BlackElo "2233"]
[Result "1/2-1/2"]
[Round "01"]
[TimeControl "180+2"]
[Date "2023.01.10"]
[WhiteClock "0:01:11"]
[BlackClock "0:00:15"]

1. e4 {[%clk 0:00:00]}  e6 {[%clk 0:00:00]} 2. d4 {[%clk 0:02:58]}  d5 {[%clk 0:02:59]} 3. Nc3 {[%clk 0:02:58]}  Nf6 {[%clk 0:02:59]} 4. e5 {[%clk 0:02:58]}  Nfd7 {[%clk 0:02:59]} 5. f4 {[%clk 0:02:58]}  c5 {[%clk 0:02:59]} 6. Nf3 {[%clk 0:02:59]}  Nc6 {[%clk 0:03:00]} 7. Be3 {[%clk 0:03:00]}  a6 {[%clk 0:03:01]} 8. Qd2 {[%clk 0:03:00]}  b5 {[%clk 0:02:59]} 9. dxc5 {[%clk 0:03:00]}  Bxc5 {[%clk 0:02:55]} 10. Bd3 {[%clk 0:03:00]}  Qb6 {[%clk 0:02:56]} 11. Bf2 {[%clk 0:02:58]}  b4 {[%clk 0:02:56]} 12. Na4 {[%clk 0:02:57]}  Bxf2+ {[%clk 0:02:54]} 13. Qxf2 {[%clk 0:02:52]}  Qa5 {[%clk 0:02:54]} 14. b3 {[%clk 0:02:52]}  Ne7 {[%clk 0:02:53]} 15. O-O {[%clk 0:02:52]}  Bb7 {[%clk 0:02:45]} 16. Qd2 {[%clk 0:02:49]}  Rc8 {[%clk 0:02:44]} 17. a3 {[%clk 0:02:49]}  Nc6 {[%clk 0:02:40]} 18. Kh1 {[%clk 0:02:48]}  bxa3 {[%clk 0:02:14]} 19. Qxa5 {[%clk 0:01:58]}  Nxa5 {[%clk 0:02:09]} 20. Rxa3 {[%clk 0:01:56]}  Nc6 {[%clk 0:02:10]} 21. Ng5 {[%clk 0:01:57]}  h6 {[%clk 0:02:10]} 22. Nf3 {[%clk 0:01:52]}  Nb4 {[%clk 0:02:05]} 23. Raa1 {[%clk 0:01:51]}  Nxc2 {[%clk 0:02:04]} 24. Bxc2 {[%clk 0:01:46]}  Rxc2 {[%clk 0:01:51]} 25. Rfc1 {[%clk 0:01:42]}  Rxc1+ {[%clk 0:01:52]} 26. Rxc1 {[%clk 0:01:42]}  Kd8 {[%clk 0:01:09]} 27. Nd4 {[%clk 0:01:43]}  g5 {[%clk 0:01:10]} 28. g3 {[%clk 0:01:42]}  a5 {[%clk 0:01:06]} 29. Kg2 {[%clk 0:01:40]}  Rg8 {[%clk 0:01:00]} 30. Kf3 {[%clk 0:01:40]}  gxf4 {[%clk 0:00:46]} 31. gxf4 {[%clk 0:01:37]}  h5 {[%clk 0:00:46]} 32. h3 {[%clk 0:01:37]}  h4 {[%clk 0:00:40]} 33. Kf2 {[%clk 0:01:26]}  Rg3 {[%clk 0:00:40]} 34. Rc3 {[%clk 0:01:20]}  Rxc3 {[%clk 0:00:39]} 35. Nxc3 {[%clk 0:01:20]}  Nc5 {[%clk 0:00:38]} 36. Ke3 {[%clk 0:01:20]}  Ba6 {[%clk 0:00:39]} 37. f5 {[%clk 0:01:16]}  Bf1 {[%clk 0:00:35]} 38. fxe6 {[%clk 0:01:16]}  fxe6 {[%clk 0:00:34]} 39. Kf4 {[%clk 0:01:16]}  Bxh3 {[%clk 0:00:35]} 40. Kg5 {[%clk 0:01:15]}  Bf1 {[%clk 0:00:27]} 41. Kxh4 {[%clk 0:01:15]}  Ke7 {[%clk 0:00:22]} 42. Kg5 {[%clk 0:01:15]}  Bd3 {[%clk 0:00:23]} 43. Kf4 {[%clk 0:01:15]}  Ne4 {[%clk 0:00:20]} 44. Nxe4 {[%clk 0:01:14]}  Bxe4 {[%clk 0:00:16]} 45. Nc6+ {[%clk 0:01:13]}  Kd7 {[%clk 0:00:16]} 46. Nxa5 {[%clk 0:01:13]}  Kc7 {[%clk 0:00:15]} 47. b4 {[%clk 0:01:14]}  Bc2 {[%clk 0:00:16]} 48. Ke3 {[%clk 0:01:13]}  Kb6 {[%clk 0:00:16]} 49. Kd4 {[%clk 0:01:13]}  Kb5 {[%clk 0:00:16]} 50. Kc3 {[%clk 0:01:13]}  Bf5 {[%clk 0:00:15]} 51. Nb7 {[%clk 0:01:14]}  Kb6 {[%clk 0:00:14]} 52. Nd6 {[%clk 0:01:14]}  Bg6 {[%clk 0:00:13]} 53. Kd4 {[%clk 0:01:14]}  Kc6 {[%clk 0:00:14]} 54. Kc3 {[%clk 0:01:14]}  Kb6 {[%clk 0:00:14]} 55. Kd4 {[%clk 0:01:11]}  Kc6 {[%clk 0:00:15]} 56. Kc3 {[%clk 0:01:11]}  Kb6 {[%clk 0:00:15]} 1/2-1/2


[Site "https://www.chess.com"]